[Event "Schack-SM 2024: Mastarklassen-elit"]
[Site "Fortnox Arena, Hejaregatan 5, Vaxjo, Sweden"]
[Date "2024.07.01"]
[Round "3.3"]
[White "Akesson, Ralf"]
[Black "Thorn, Eric"]
[Result "1-0"]
[TimeControl "90 minutes for 40 moves + 30 minutes for the rest of the game + 30 seconds per move from move one."]
[WhiteTitle "GM"]
[BlackTitle "FM"]
[WhiteElo "2360"]
[BlackElo "2359"]

1. d4 {[%clk 01:30:52]} {[%emt 00:00:03]} Nf6 {[%clk 01:30:52]} {[%emt
00:00:09]} 2. c4 {[%clk 01:31:10]} {[%emt 00:00:13]} e6 {[%clk 01:31:16]}
{[%emt 00:00:06]} 3. Nf3 {[%clk 01:30:50]} {[%emt 00:00:51]} d5 {[%clk
01:31:39]} {[%emt 00:00:06]} 4. Nc3 {[%clk 01:31:02]} {[%emt 00:00:20]} Nbd7
{[%clk 01:31:28]} {[%emt 00:00:40]} 5. cxd5 {[%clk 01:28:03]} {[%emt 00:03:28]}
exd5 {[%clk 01:30:13]} {[%emt 00:01:46]} 6. Qc2 {[%clk 01:27:14]} {[%emt
00:01:19]} c6 {[%clk 01:27:46]} {[%emt 00:02:56]} 7. Bf4 {[%clk 01:26:15]}
{[%emt 00:01:28]} Be7 {[%clk 01:25:50]} {[%emt 00:02:27]} 8. h3 {[%clk
01:25:32]} {[%emt 00:01:12]} O-O {[%clk 01:23:37]} {[%emt 00:02:44]} 9. e3
{[%clk 01:25:07]} {[%emt 00:00:55]} Re8 {[%clk 01:23:19]} {[%emt 00:00:48]} 10.
Bd3 {[%clk 01:23:10]} {[%emt 00:02:27]} Nf8 {[%clk 01:19:04]} {[%emt 00:04:45]}
11. O-O {[%clk 01:18:19]} {[%emt 00:05:21]} Ng6 {[%clk 01:06:32]} {[%emt
00:13:01]} 12. Be5 {[%clk 01:15:35]} {[%emt 00:03:14]} Bd6 {[%clk 01:02:13]}
{[%emt 00:04:49]} 13. Bxd6 {[%clk 01:14:57]} {[%emt 00:01:09]} Qxd6 {[%clk
01:02:37]} {[%emt 00:00:04]} 14. Rab1 {[%clk 01:15:09]} {[%emt 00:00:19]} Bd7
{[%clk 00:55:05]} {[%emt 00:08:02]} 15. b4 {[%clk 01:13:59]} {[%emt 00:01:40]}
Rac8 {[%clk 00:52:28]} {[%emt 00:03:06]} 16. Rfc1 {[%clk 01:11:31]} {[%emt
00:03:00]} Ne7 {[%clk 00:37:30]} {[%emt 00:15:27]} 17. Na4 {[%clk 01:02:12]}
{[%emt 00:09:49]} b6 {[%clk 00:29:40]} {[%emt 00:08:20]} 18. Ne5 {[%clk
00:59:08]} {[%emt 00:03:34]} Be6 {[%clk 00:25:30]} {[%emt 00:04:40]} 19. Nc3
{[%clk 00:56:11]} {[%emt 00:03:27]} g6 {[%clk 00:20:44]} {[%emt 00:05:16]} 20.
Qa4 {[%clk 00:43:43]} {[%emt 00:12:59]} Rc7 {[%clk 00:16:51]} {[%emt 00:04:22]}
21. Rb2 {[%clk 00:41:27]} {[%emt 00:02:46]} Nd7 {[%clk 00:14:59]} {[%emt
00:02:22]} 22. Nxd7 {[%clk 00:38:32]} {[%emt 00:03:25]} Bxd7 {[%clk 00:14:02]}
{[%emt 00:01:27]} 23. Rbc2 {[%clk 00:36:01]} {[%emt 00:03:00]} Bf5 {[%clk
00:07:51]} {[%emt 00:06:42]} 24. Bxf5 {[%clk 00:34:40]} {[%emt 00:01:51]} Nxf5
{[%clk 00:08:12]} {[%emt 00:00:10]} 25. Qb3 {[%clk 00:28:02]} {[%emt 00:07:08]}
Rec8 {[%clk 00:08:12]} {[%emt 00:00:30]} 26. a4 {[%clk 00:21:34]} {[%emt
00:06:58]} Ne7 {[%clk 00:07:15]} {[%emt 00:01:27]} 27. Ne2 {[%clk 00:21:01]}
{[%emt 00:01:01]} Nf5 {[%clk 00:05:35]} {[%emt 00:02:11]} 28. Qb2 {[%clk
00:19:57]} {[%emt 00:01:35]} Qd7 {[%emt 00:02:22]} 29. Qb3 {[%clk 00:11:32]}
{[%emt 00:07:56]} Nd6 {[%clk 00:04:17]} {[%emt 00:00:54]} 30. b5 {[%clk
00:09:28]} {[%emt 00:02:35]} cxb5 {[%clk 00:02:01]} {[%emt 00:02:46]} 31. Rxc7
{[%clk 00:09:48]} {[%emt 00:00:08]} Rxc7 {[%clk 00:02:28]} {[%emt 00:00:04]} 32.
Rxc7 {[%clk 00:10:10]} {[%emt 00:00:08]} Qxc7 {[%clk 00:02:55]} {[%emt
00:00:03]} 33. axb5 {[%clk 00:10:32]} {[%emt 00:00:07]} Qc4 {[%clk 00:01:34]}
{[%emt 00:01:51]} 34. Qxc4 {[%clk 00:10:49]} {[%emt 00:00:13]} dxc4 {[%clk
00:01:59]} {[%emt 00:00:06]} 35. Nc3 {[%clk 00:11:11]} {[%emt 00:00:07]} Kf8
{[%clk 00:00:55]} {[%emt 00:01:35]} 36. e4 {[%clk 00:10:10]} {[%emt 00:01:30]}
Ke8 {[%clk 00:00:40]} {[%emt 00:00:46]} 37. g4 {[%clk 00:09:41]} {[%emt
00:00:57]} f6 {[%clk 00:00:35]} {[%emt 00:00:36]} 38. f3 {[%clk 00:07:04]}
{[%emt 00:03:06]} g5 {[%clk 00:00:37]} {[%emt 00:00:28]} 39. Kf2 {[%clk
00:07:22]} {[%emt 00:00:12]} Kd7 {[%clk 00:00:35]} {[%emt 00:00:32]} 40. Ke3
{[%clk 00:07:38]} {[%emt 00:00:14]} Ke6 {[%clk 00:00:32]} {[%emt 00:00:34]} 41.
f4 {[%clk 00:06:41]} {[%emt 00:01:25]} gxf4+ {[%clk 00:27:44]} {[%emt
00:03:19]} 42. Kxf4 {[%clk 00:36:44]} {[%emt 00:00:27]} h6 {[%clk 00:24:45]}
{[%emt 00:03:31]} 43. h4 {[%clk 00:36:00]} {[%emt 00:01:13]} Nf7 {[%clk
00:20:49]} {[%emt 00:04:26]} 44. d5+ {[%clk 00:24:15]} {[%emt 00:12:15]} Kd6
{[%clk 00:13:46]} {[%emt 00:07:32]} 45. Kf5 {[%clk 00:24:27]} {[%emt 00:00:18]}
Ne5 {[%clk 00:14:11]} {[%emt 00:00:06]} 46. Na4 {[%clk 00:13:40]} {[%emt
00:11:16]} Nd7 {[%clk 00:08:51]} {[%emt 00:05:51]} 47. Nc3 {[%clk 00:10:43]}
{[%emt 00:03:27]} Kc5 {[%clk 00:07:02]} {[%emt 00:02:18]} 48. Ke6 {[%clk
00:10:55]} {[%emt 00:00:19]} Kd4 {[%clk 00:05:20]} {[%emt 00:02:11]} 49. Kxd7
{[%clk 00:09:18]} {[%emt 00:02:07]} Kxc3 {[%clk 00:05:45]} {[%emt 00:00:05]} 50.
d6 {[%clk 00:09:41]} {[%emt 00:00:07]} Kb4 {[%clk 00:06:07]} {[%emt 00:00:08]}
51. Ke6 {[%clk 00:09:02]} {[%emt 00:01:09]} c3 {[%clk 00:06:32]} {[%emt
00:00:06]} 52. d7 {[%clk 00:09:28]} {[%emt 00:00:03]} c2 {[%clk 00:06:58]}
{[%emt 00:00:04]} 53. d8=Q {[%clk 00:09:55]} {[%emt 00:00:04]} c1=Q {[%clk
00:07:23]} {[%emt 00:00:05]} 54. Qxf6 {[%clk 00:06:56]} {[%emt 00:03:28]} Qc4+
{[%clk 00:06:13]} {[%emt 00:01:40]} 55. Kf5 {[%clk 00:06:42]} {[%emt 00:00:44]}
Qxb5+ {[%clk 00:06:24]} {[%emt 00:00:19]} 56. e5 {[%clk 00:07:00]} {[%emt
00:00:11]} Qd3+ {[%clk 00:05:36]} {[%emt 00:01:19]} 57. Ke6 {[%clk 00:07:24]}
{[%emt 00:00:06]} Qc4+ {[%clk 00:04:46]} {[%emt 00:01:21]} 58. Kd6 {[%clk
00:07:41]} {[%emt 00:00:12]} Qd4+ {[%clk 00:02:11]} {[%emt 00:03:06]} 59. Kc6
{[%clk 00:07:48]} {[%emt 00:00:21]} Ka5 {[%clk 00:01:20]} {[%emt 00:01:22]} 60.
Qd6 {[%clk 00:05:10]} {[%emt 00:03:08]} Qc4+ {[%clk 00:00:38]} {[%emt
00:01:12]} 61. Kb7 {[%clk 00:04:58]} {[%emt 00:00:42]} Qf7+ {[%clk 00:00:33]}
{[%emt 00:00:36]} 62. Kb8 {[%clk 00:04:33]} {[%emt 00:00:54]} Ka6 {[%clk
00:00:32]} {[%emt 00:00:31]} 63. Qc7 {[%clk 00:03:56]} {[%emt 00:01:06]} Qd5
{[%clk 00:00:36]} {[%emt 00:00:26]} 64. Qxa7+ {[%clk 00:04:02]} {[%emt
00:00:24]} Kb5 {[%clk 00:01:02]} {[%emt 00:00:05]} 65. Qe7 {[%clk 00:03:06]}
{[%emt 00:01:25]} Qg8+ {[%clk 00:01:13]} {[%emt 00:00:19]} 66. Kc7 {[%clk
00:03:18]} {[%emt 00:00:17]} Qc4+ {[%clk 00:01:28]} {[%emt 00:00:17]} 67. Kd8
{[%clk 00:03:32]} {[%emt 00:00:15]} Ka6 {[%clk 00:01:04]} {[%emt 00:00:54]} 68.
e6 {[%clk 00:03:10]} {[%emt 00:00:53]} Qxg4 {[%clk 00:00:58]} {[%emt 00:00:36]}
69. Qf6 {[%clk 00:03:07]} {[%emt 00:00:32]} Qg8+ {[%clk 00:00:34]} {[%emt
00:00:54]} 70. Kd7 {[%clk 00:03:22]} {[%emt 00:00:15]} Kb7 {[%clk 00:00:32]}
{[%emt 00:00:32]} 71. Qf3+ {[%clk 00:03:27]} {[%emt 00:00:25]} Kb8 {[%clk
00:00:35]} {[%emt 00:00:27]} 72. Qf4+ {[%clk 00:03:18]} {[%emt 00:00:39]} Kb7
{[%clk 00:00:59]} {[%emt 00:00:06]} 73. Qc7+ {[%clk 00:03:35]} {[%emt
00:00:13]} Ka6 {[%clk 00:01:15]} {[%emt 00:00:15]} 74. Qc8+ {[%clk 00:03:58]}
{[%emt 00:00:05]} 1-0

[Event "Schack-SM 2024: Mastarklassen-elit"]
[Site "Fortnox Arena, Hejaregatan 5, Vaxjo, Sweden"]
[Date "2024.06.30"]
[Round "2.1"]
[White "Sorensen, Hampus"]
[Black "Cederstam, Carl"]
[Result "1-0"]
[TimeControl "90 minutes for 40 moves + 30 minutes for the rest of the game + 30 seconds per move from move one."]
[WhiteTitle "IM"]
[BlackTitle "FM"]
[WhiteElo "2404"]
[BlackElo "2278"]

1. d4 {[%clk 01:30:44]} {[%emt 00:00:17]} d6 {[%clk 01:29:12]} {[%emt
00:01:48]} 2. Nf3 {[%clk 01:26:02]} {[%emt 00:05:11]} Nf6 {[%clk 01:29:35]}
{[%emt 00:00:08]} 3. c4 {[%clk 01:22:36]} {[%emt 00:03:56]} g6 {[%clk
01:29:45]} {[%emt 00:00:19]} 4. Nc3 {[%clk 01:21:22]} {[%emt 00:01:44]} Bf5
{[%clk 01:29:56]} {[%emt 00:00:19]} 5. Qb3 {[%clk 01:19:42]} {[%emt 00:02:10]}
b6 {[%clk 01:30:20]} {[%emt 00:00:06]} 6. h3 {[%clk 01:16:41]} {[%emt
00:03:30]} Nc6 {[%clk 01:29:01]} {[%emt 00:01:49]} 7. g4 {[%clk 01:13:00]}
{[%emt 00:04:12]} Bd7 {[%clk 01:29:03]} {[%emt 00:00:29]} 8. e4 {[%clk
01:12:03]} {[%emt 00:01:27]} e5 {[%clk 01:23:21]} {[%emt 00:06:11]} 9. d5
{[%clk 01:10:01]} {[%emt 00:02:32]} Nd4 {[%clk 01:22:28]} {[%emt 00:01:20]} 10.
Qd1 {[%clk 01:10:14]} {[%emt 00:00:19]} c5 {[%clk 01:04:07]} {[%emt 00:18:51]}
11. Bd3 {[%clk 01:04:24]} {[%emt 00:06:21]} Nxg4 {[%clk 01:02:03]} {[%emt
00:02:35]} 12. hxg4 {[%clk 00:55:40]} {[%emt 00:09:13]} Bxg4 {[%clk 01:02:15]}
{[%emt 00:00:18]} 13. Be2 {[%clk 00:56:05]} {[%emt 00:00:04]} Nxe2 {[%clk
00:57:56]} {[%emt 00:04:49]} 14. Nh2 {[%clk 00:46:41]} {[%emt 00:09:55]} Nxc3
{[%clk 00:44:26]} {[%emt 00:14:00]} 15. Qxg4 {[%clk 00:46:52]} {[%emt
00:00:18]} Nxe4 {[%clk 00:44:50]} {[%emt 00:00:07]} 16. Qxe4 {[%clk 00:47:13]}
{[%emt 00:00:09]} f5 {[%clk 00:43:26]} {[%emt 00:01:53]} 17. Qe2 {[%clk
00:46:19]} {[%emt 00:01:25]} Qh4 {[%clk 00:41:28]} {[%emt 00:02:28]} 18. Bd2
{[%clk 00:46:02]} {[%emt 00:00:45]} Bh6 {[%clk 00:27:31]} {[%emt 00:14:28]} 19.
Bxh6 {[%clk 00:40:39]} {[%emt 00:05:53]} Qxh6 {[%clk 00:27:56]} {[%emt
00:00:05]} 20. Kd1 {[%clk 00:40:51]} {[%emt 00:00:19]} O-O-O {[%clk 00:14:30]}
{[%emt 00:13:55]} 21. Kc2 {[%clk 00:39:57]} {[%emt 00:01:24]} Qf4 {[%clk
00:13:32]} {[%emt 00:01:29]} 22. Nf3 {[%clk 00:38:49]} {[%emt 00:01:39]} g5
{[%clk 00:13:35]} {[%emt 00:00:25]} 23. Rh5 {[%clk 00:31:10]} {[%emt 00:08:09]}
Rdg8 {[%clk 00:06:25]} {[%emt 00:07:39]} 24. Rah1 {[%clk 00:29:18]} {[%emt
00:02:23]} h6 {[%clk 00:06:35]} {[%emt 00:00:21]} 25. Ne1 {[%clk 00:28:05]}
{[%emt 00:01:43]} Rg6 {[%clk 00:05:50]} {[%emt 00:01:14]} 26. Ng2 {[%clk
00:24:46]} {[%emt 00:03:49]} Qd4 {[%clk 00:05:53]} {[%emt 00:00:28]} 27. Rd1
{[%clk 00:24:25]} {[%emt 00:00:50]} Qe4+ {[%clk 00:04:59]} {[%emt 00:01:24]} 28.
Qxe4 {[%clk 00:24:43]} {[%emt 00:00:12]} fxe4 {[%clk 00:05:27]} {[%emt
00:00:03]} 29. Kd2 {[%clk 00:21:59]} {[%emt 00:03:14]} Rf8 {[%clk 00:05:48]}
{[%emt 00:00:09]} 30. Ke2 {[%clk 00:21:55]} {[%emt 00:00:34]} g4 {[%clk
00:02:01]} {[%emt 00:04:17]} 31. Rf1 {[%clk 00:21:21]} {[%emt 00:01:03]} Kb7
{[%clk 00:00:42]} {[%emt 00:01:50]} 32. Ne3 {[%clk 00:20:45]} {[%emt 00:01:06]}
Rf3 {[%clk 00:00:33]} {[%emt 00:00:39]} 33. Rg1 {[%clk 00:20:48]} {[%emt
00:00:26]} Rgf6 {[%clk 00:00:34]} {[%emt 00:00:30]} 34. Nxg4 {[%clk 00:18:36]}
{[%emt 00:02:41]} Rg6 {[%clk 00:00:52]} {[%emt 00:00:13]} 35. Rxh6 {[%clk
00:18:47]} {[%emt 00:00:19]} Rg5 {[%clk 00:01:03]} {[%emt 00:00:17]} 36. Rhh1
{[%clk 00:18:39]} {[%emt 00:00:39]} b5 {[%clk 00:00:47]} {[%emt 00:00:46]} 37.
Ne3 {[%clk 00:18:48]} {[%emt 00:00:21]} Rxg1 {[%clk 00:00:41]} {[%emt
00:00:36]} 38. Rxg1 {[%clk 00:19:16]} {[%emt 00:00:02]} Kb6 {[%clk 00:00:59]}
{[%emt 00:00:13]} 39. Rg6 {[%clk 00:19:35]} {[%emt 00:00:10]} Ka5 {[%clk
00:00:36]} {[%emt 00:00:54]} 40. cxb5 {[%clk 00:19:47]} {[%emt 00:00:17]} Kxb5
{[%clk 00:00:40]} {[%emt 00:00:26]} 41. Rxd6 {[%clk 00:20:08]} {[%emt
00:00:10]} a5 {[%clk 00:00:59]} {[%emt 00:00:11]} 42. Rd8 {[%clk 00:20:28]}
{[%emt 00:00:09]} c4 {[%clk 00:01:17]} {[%emt 00:00:13]} 43. Rb8+ {[%clk
00:20:42]} {[%emt 00:00:15]} Ka4 {[%clk 00:01:42]} {[%emt 00:00:06]} 44. b3+
{[%clk 00:20:28]} {[%emt 00:00:43]} cxb3 {[%clk 00:01:40]} {[%emt 00:00:33]} 45.
axb3+ {[%clk 00:20:54]} {[%emt 00:00:03]} Ka3 {[%clk 00:02:06]} {[%emt
00:00:04]} 46. d6 {[%clk 00:21:16]} {[%emt 00:00:08]} Kb2 {[%clk 00:02:14]}
{[%emt 00:00:22]} 47. d7 {[%clk 00:21:39]} {[%emt 00:00:07]} a4 {[%clk
00:02:39]} {[%emt 00:00:06]} 48. d8=Q {[%clk 00:22:00]} {[%emt 00:00:09]} a3
{[%clk 00:02:51]} {[%emt 00:00:18]} 49. Qd2+ {[%clk 00:22:10]} {[%emt
00:00:19]} Kb1 {[%clk 00:03:11]} {[%emt 00:00:10]} 50. Rc8 {[%clk 00:22:25]}
{[%emt 00:00:16]} a2 {[%clk 00:03:35]} {[%emt 00:00:06]} 51. Rc1# {[%clk
00:22:19]} {[%emt 00:00:05]} 1-0

[Event "Schack-SM 2024: Mastarklassen-elit"]
[Site "Fortnox Arena, Hejaregatan 5, Vaxjo, Sweden"]
[Date "2024.06.30"]
[Round "2.2"]
[White "Crevatin, Leo"]
[Black "Akesson, Ralf"]
[Result "1/2-1/2"]
[TimeControl "90 minutes for 40 moves + 30 minutes for the rest of the game + 30 seconds per move from move one."]
[WhiteTitle "FM"]
[BlackTitle "GM"]
[WhiteElo "2235"]
[BlackElo "2360"]

1. d4 {[%clk 01:30:48]} {[%emt 00:00:08]} Nf6 {[%clk 01:30:13]} {[%emt
00:00:51]} 2. c4 {[%clk 01:31:09]} {[%emt 00:00:09]} g6 {[%clk 01:30:20]}
{[%emt 00:00:22]} 3. Nc3 {[%clk 01:31:18]} {[%emt 00:00:22]} d5 {[%clk
01:30:40]} {[%emt 00:00:10]} 4. cxd5 {[%clk 01:30:52]} {[%emt 00:00:56]} Nxd5
{[%clk 01:30:35]} {[%emt 00:00:34]} 5. e4 {[%clk 01:29:10]} {[%emt 00:02:12]}
Nxc3 {[%clk 01:30:54]} {[%emt 00:00:12]} 6. bxc3 {[%clk 01:29:35]} {[%emt
00:00:03]} Bg7 {[%clk 01:31:15]} {[%emt 00:00:10]} 7. Nf3 {[%clk 01:29:56]}
{[%emt 00:00:08]} c5 {[%clk 01:31:18]} {[%emt 00:00:28]} 8. Bb5+ {[%clk
01:30:00]} {[%emt 00:00:26]} Nc6 {[%clk 01:28:33]} {[%emt 00:03:15]} 9. O-O
{[%clk 01:29:46]} {[%emt 00:00:43]} cxd4 {[%clk 01:24:46]} {[%emt 00:04:17]} 10.
cxd4 {[%clk 01:29:41]} {[%emt 00:00:34]} O-O {[%clk 01:24:55]} {[%emt
00:00:23]} 11. Be3 {[%clk 01:28:21]} {[%emt 00:01:49]} Bg4 {[%clk 01:22:48]}
{[%emt 00:02:38]} 12. Bxc6 {[%clk 01:26:41]} {[%emt 00:02:10]} bxc6 {[%clk
01:21:47]} {[%emt 00:01:32]} 13. Rc1 {[%clk 01:25:49]} {[%emt 00:01:21]} Rc8
{[%clk 01:09:22]} {[%emt 00:12:55]} 14. Rc5 {[%clk 01:18:07]} {[%emt 00:08:11]}
Qd6 {[%clk 00:58:44]} {[%emt 00:11:08]} 15. Qa4 {[%clk 00:58:42]} {[%emt
00:19:54]} Bxf3 {[%clk 00:54:15]} {[%emt 00:05:00]} 16. gxf3 {[%clk 00:58:57]}
{[%emt 00:00:15]} Rfd8 {[%clk 00:53:04]} {[%emt 00:01:41]} 17. Rd1 {[%clk
00:53:36]} {[%emt 00:05:51]} e5 {[%clk 00:46:11]} {[%emt 00:07:24]} 18. d5
{[%clk 00:50:24]} {[%emt 00:03:41]} Bh6 {[%clk 00:44:14]} {[%emt 00:02:27]} 19.
Rdc1 {[%clk 00:38:00]} {[%emt 00:12:55]} Bxe3 {[%clk 00:43:54]} {[%emt
00:00:49]} 20. fxe3 {[%clk 00:37:47]} {[%emt 00:00:44]} Qf6 {[%clk 00:38:01]}
{[%emt 00:06:23]} 21. Kg2 {[%clk 00:33:46]} {[%emt 00:04:31]} Qg5+ {[%clk
00:36:44]} {[%emt 00:01:47]} 22. Kf2 {[%clk 00:34:08]} {[%emt 00:00:08]} Qh6
{[%clk 00:29:51]} {[%emt 00:07:23]} 23. Kg2 {[%clk 00:29:46]} {[%emt 00:04:52]}
Qxe3 {[%clk 00:23:37]} {[%emt 00:06:44]} 24. Qd1 {[%clk 00:26:41]} {[%emt
00:03:35]} Qg5+ {[%clk 00:15:42]} {[%emt 00:08:26]} 25. Kh1 {[%clk 00:25:24]}
{[%emt 00:01:46]} Qf6 {[%clk 00:15:23]} {[%emt 00:00:50]} 26. Qe2 {[%clk
00:21:14]} {[%emt 00:04:39]} Rd6 {[%clk 00:12:19]} {[%emt 00:03:35]} 27. Qe3
{[%clk 00:17:47]} {[%emt 00:03:57]} Kg7 {[%clk 00:11:02]} {[%emt 00:01:47]} 28.
Rxc6 {[%clk 00:16:02]} {[%emt 00:02:15]} Rcxc6 {[%clk 00:10:41]} {[%emt
00:00:51]} 29. Rxc6 {[%clk 00:15:42]} {[%emt 00:00:49]} Rxc6 {[%clk 00:11:04]}
{[%emt 00:00:07]} 30. dxc6 {[%clk 00:16:09]} {[%emt 00:00:03]} Qxc6 {[%clk
00:11:23]} {[%emt 00:00:12]} 31. Qxa7 {[%clk 00:16:31]} {[%emt 00:00:06]} Qc1+
{[%clk 00:11:08]} {[%emt 00:00:47]} 32. Kg2 {[%clk 00:16:40]} {[%emt 00:00:21]}
Qg5+ {[%clk 00:10:58]} {[%emt 00:00:40]} 33. Kf2 {[%clk 00:15:02]} {[%emt
00:02:07]} Qd2+ {[%clk 00:11:08]} {[%emt 00:00:21]} 1/2-1/2

[Event "Schack-SM 2024: Mastarklassen-elit"]
[Site "Fortnox Arena, Hejaregatan 5, Vaxjo, Sweden"]
[Date "2024.06.30"]
[Round "2.3"]
[White "Olsson, William"]
[Black "Wiedenkeller, Michael"]
[Result "1/2-1/2"]
[TimeControl "90 minutes for 40 moves + 30 minutes for the rest of the game + 30 seconds per move from move one."]
[WhiteTitle "IM"]
[BlackTitle "IM"]
[WhiteElo "2363"]
[BlackElo "2417"]

1. Nf3 {[%clk 01:30:53]} {[%emt 00:00:06]} d5 {[%clk 01:30:10]} {[%emt
00:00:51]} 2. g3 {[%clk 01:31:11]} {[%emt 00:00:12]} g6 {[%clk 01:29:41]}
{[%emt 00:00:59]} 3. Bg2 {[%clk 01:29:54]} {[%emt 00:01:47]} Bg7 {[%clk
01:30:01]} {[%emt 00:00:09]} 4. d4 {[%clk 01:30:17]} {[%emt 00:00:07]} Nf6
{[%clk 01:29:59]} {[%emt 00:00:33]} 5. c4 {[%clk 01:30:18]} {[%emt 00:00:30]}
c6 {[%clk 01:30:22]} {[%emt 00:00:06]} 6. b3 {[%clk 01:30:28]} {[%emt
00:00:21]} O-O {[%clk 01:28:58]} {[%emt 00:01:53]} 7. Bb2 {[%clk 01:29:57]}
{[%emt 00:01:02]} a5 {[%clk 01:22:20]} {[%emt 00:07:08]} 8. Nc3 {[%clk
01:21:40]} {[%emt 00:08:47]} Ne4 {[%clk 01:15:31]} {[%emt 00:07:18]} 9. O-O
{[%clk 01:19:25]} {[%emt 00:02:44]} Nxc3 {[%clk 01:11:04]} {[%emt 00:04:58]} 10.
Bxc3 {[%clk 01:19:53]} {[%emt 00:00:02]} b5 {[%clk 01:08:27]} {[%emt 00:03:07]}
11. cxb5 {[%clk 01:17:22]} {[%emt 00:03:02]} cxb5 {[%clk 01:08:41]} {[%emt
00:00:15]} 12. Rc1 {[%clk 01:16:57]} {[%emt 00:00:56]} Nd7 {[%clk 01:04:34]}
{[%emt 00:04:37]} 13. Bd2 {[%clk 01:14:24]} {[%emt 00:03:03]} Bb7 {[%clk
01:01:32]} {[%emt 00:03:31]} 14. Bf4 {[%clk 01:14:28]} {[%emt 00:00:25]} Rc8
{[%clk 01:00:36]} {[%emt 00:01:27]} 15. Rxc8 {[%clk 01:14:36]} {[%emt
00:00:24]} Qxc8 {[%clk 01:00:27]} {[%emt 00:00:38]} 16. Qd3 {[%clk 01:04:31]}
{[%emt 00:10:33]} Bc6 {[%clk 00:59:20]} {[%emt 00:01:39]} 17. h4 {[%clk
00:58:18]} {[%emt 00:06:43]} Qa8 {[%clk 00:53:12]} {[%emt 00:06:36]} 18. h5
{[%clk 00:54:14]} {[%emt 00:04:35]} Rc8 {[%clk 00:52:57]} {[%emt 00:00:45]} 19.
Bh3 {[%clk 00:54:21]} {[%emt 00:00:24]} e6 {[%clk 00:51:06]} {[%emt 00:02:20]}
20. hxg6 {[%clk 00:51:29]} {[%emt 00:03:22]} hxg6 {[%clk 00:51:26]} {[%emt
00:00:11]} 21. Kg2 {[%clk 00:51:31]} {[%emt 00:00:28]} b4 {[%clk 00:43:50]}
{[%emt 00:08:06]} 22. Bd6 {[%clk 00:42:46]} {[%emt 00:09:14]} Nf8 {[%clk
00:37:39]} {[%emt 00:06:41]} 23. Be5 {[%clk 00:41:08]} {[%emt 00:02:08]} Qb7
{[%clk 00:35:18]} {[%emt 00:02:51]} 24. Rh1 {[%clk 00:38:52]} {[%emt 00:02:42]}
f6 {[%clk 00:23:16]} {[%emt 00:12:35]} 25. Bd6 {[%clk 00:39:05]} {[%emt
00:00:17]} Kf7 {[%clk 00:21:54]} {[%emt 00:01:52]} 26. Qe3 {[%clk 00:31:56]}
{[%emt 00:07:39]} Bd7 {[%clk 00:13:44]} {[%emt 00:08:40]} 27. Bc5 {[%clk
00:31:21]} {[%emt 00:01:04]} Qa6 {[%clk 00:13:06]} {[%emt 00:01:08]} 28. Bg4
{[%clk 00:30:46]} {[%emt 00:01:05]} Kg8 {[%clk 00:09:49]} {[%emt 00:03:46]} 29.
Rc1 {[%clk 00:28:32]} {[%emt 00:02:44]} f5 {[%clk 00:09:13]} {[%emt 00:01:06]}
30. Bh3 {[%clk 00:29:00]} {[%emt 00:00:03]} Bb5 {[%clk 00:09:13]} {[%emt
00:00:31]} 31. Rc2 {[%clk 00:23:31]} {[%emt 00:05:57]} Nd7 {[%clk 00:09:18]}
{[%emt 00:00:25]} 32. Kf1 {[%clk 00:23:07]} {[%emt 00:00:55]} e5 {[%clk
00:05:58]} {[%emt 00:03:49]} 33. Nxe5 {[%clk 00:21:05]} {[%emt 00:02:34]} Bxe5
{[%clk 00:06:12]} {[%emt 00:00:16]} 34. dxe5 {[%clk 00:21:33]} Nxc5 {[%clk
00:06:17]} {[%emt 00:00:25]} 35. Rxc5 {[%clk 00:21:45]} {[%emt 00:00:16]} Bxe2+
{[%clk 00:05:14]} {[%emt 00:01:35]} 36. Kg1 {[%clk 00:22:14]} {[%emt 00:00:01]}
Rxc5 {[%clk 00:04:35]} {[%emt 00:01:09]} 37. Qxc5 {[%clk 00:22:42]} {[%emt
00:00:02]} Bf3 {[%clk 00:03:17]} {[%emt 00:01:49]} 38. Bf1 {[%clk 00:20:26]}
{[%emt 00:02:46]} Qe6 {[%clk 00:03:13]} {[%emt 00:00:33]} 39. Qe3 {[%clk
00:20:54]} {[%emt 00:00:03]} Be4 {[%clk 00:01:22]} {[%emt 00:02:20]} 40. f3
{[%clk 00:19:52]} {[%emt 00:01:32]} Bc2 {[%clk 00:01:07]} {[%emt 00:00:46]} 41.
Qc1 {[%clk 00:10:49]} {[%emt 00:09:33]} Qc6 {[%clk 00:26:47]} {[%emt 00:04:49]}
42. e6 {[%clk 00:35:49]} {[%emt 00:05:30]} Kg7 {[%clk 00:21:01]} {[%emt
00:06:15]} 43. Qe3 {[%clk 00:25:00]} {[%emt 00:11:19]} Kf6 {[%clk 00:16:36]}
{[%emt 00:04:56]} 44. e7 {[%clk 00:22:10]} {[%emt 00:03:20]} Kf7 {[%clk
00:17:00]} {[%emt 00:00:06]} 45. Ba6 {[%clk 00:21:36]} {[%emt 00:01:03]} Ke8
{[%clk 00:13:50]} {[%emt 00:03:42]} 46. Qe2 {[%clk 00:21:29]} {[%emt 00:00:37]}
Bd1 {[%clk 00:14:04]} {[%emt 00:00:16]} 47. Qxd1 {[%clk 00:21:46]} {[%emt
00:00:13]} Qxa6 {[%clk 00:13:45]} {[%emt 00:00:49]} 48. Qxd5 {[%clk 00:22:11]}
{[%emt 00:00:05]} Kxe7 {[%clk 00:14:05]} {[%emt 00:00:09]} 1/2-1/2